Cogmind - Beta 13 @@@ ROGUE MODE // 2024.04.18 @ 23:47:30 Player: DGSTER Result: Destroyed self with Missile Launcher Performance ------------- Evolutions (2) 1000 Regions Visited (4) 800 Robots Destroyed (37) 185 Value Destroyed (1184) 1184 Prototype IDs (3) 60 Alien Tech Used (0) 0 Bonus (0) 0 TOTAL SCORE: 3229 Bonus ------- None Cogmind --------- Core Integrity 0/550 Matter 128/300 Energy 85/100 System Corruption 1% Temperature Cool (0) Movement Flying (320) Ox4 Location -8/Materials Parts ------- > --- POWER (1) -------- (None) > --- PROPULSION (2) --- Improved Flight Unit > --- UTILITY (6) ------ Medium Storage Unit Advanced Targeting Computer > --- WEAPON (2) ------- Missile Launcher Missile Launcher > --- INVENTORY (10) --- Light Ion Engine Deuterium Engine Improved Heat Sink Peak State ------------ > --- POWER ------------ Light Nuclear Core > --- PROPULSION ------- Aluminum Leg Aluminum Leg > --- UTILITY ---------- Medium Storage Unit Weight Redist. System Targeting Computer Targeting Computer Advanced Targeting Computer Light Armor Plating > --- WEAPON ----------- Slug Cannon > --- INVENTORY -------- Aluminum Leg Targeting Computer [Rating: 18] Favorites ----------- Power Ion Engine Engine Ion Engine Power Core Light Nuclear Core Propulsion Aluminum Leg Leg Aluminum Leg Flight Unit Improved Flight Unit Utility Medium Storage Unit Device Weight Redist. System Storage Medium Storage Unit Processor Targeting Computer Protection Light Armor Plating Weapon Shotgun Energy Gun Particle Gun Ballistic Gun Shotgun Ballistic Cannon Slug Cannon Launcher Missile Launcher Build | -11 -10 -9 -9 -8 ------- Run | Yrd Mat Mat Min Mat Slots Evolved 4 | . . 2 . 2 Power . | . . . . . Propulsion . | . . . . . Utility 4 | . . 2 . 2 Weapon . | . . . . . Parts Attached 36 | 8 1 6 7 14 Power 6 | 1 . 1 2 2 Engine 4 | 1 . 1 2 . Core 2 | . . . . 2 Reactor . | . . . . . Propulsion 9 | 2 . 1 2 4 Treads . | . . . . . Leg 8 | 2 . 1 2 3 Wheel . | . . . . . Hover . | . . . . . Flight 1 | . . . . 1 Utility 13 | 3 1 2 2 5 Device 3 | 2 . . 1 . Storage 2 | 1 1 . . . Processor 4 | . . 1 . 3 Hackware . | . . . . . Protection 4 | . . 1 1 2 Artifact . | . . . . . Weapon 8 | 2 . 2 1 3 Energy Gun 1 | . . 1 . . Energy Cannon . | . . . . . Ballistic Gun 3 | 2 . 1 . . Ballistic Cannon 2 | . . . 1 1 Launcher 2 | . . . . 2 Special Weapon . | . . . . . Impact Weapon . | . . . . . Slashing Weapon . | . . . . . Piercing Weapon . | . . . . . Special Melee Weapon . | . . . . . Unidentified Prototypes 1 | . . . . 1 Parts Lost 19 | . . 3 1 15 Power 5 | . . 2 . 3 Propulsion 5 | . . . 1 4 Utility 7 | . . 1 . 6 Weapon 2 | . . . . 2 Highest Loss Streak 4 | . . 2 1 4 To Critical Strikes . | . . . . . Average Slot Usage (%) 86 | . 92 88 98 66 Engine 9 | . 14 10 11 1 Core 1 | . . . . 4 Leg 21 | . 28 22 22 14 Device 5 | . 3 . 10 6 Storage 15 | . 17 22 13 9 Processor 8 | . . 3 11 15 Protection 5 | . . 7 8 2 Energy Gun 2 | . . 5 1 . Ballistic Gun 12 | . 28 15 11 . Ballistic Cannon 5 | . . . 9 11 Naked Turns . | . . . . . Heaviest Build 30 | 12 21 29 30 29 Greatest Support 26 | 20 20 20 26 26 Greatest Overweight (x) 3 | 3 1 1 1 3 Average Overweight (x) . | . . . . . Largest Inventory Capacity 10 | 8 10 10 10 10 Average Capacity 9 | 7 8 10 10 10 Most Carried 10 | 5 8 10 10 8 Average Carried 6 | 3 5 7 7 5 Final Capacity 10 | 8 10 10 10 10 Final Carried 10 | 3 6 10 7 3 Class Distribution -------------------- 98% | Mutant Dominant Class ---------------- Mutant | -10/Materials Mutant | -9/Materials Mutant | -9/Mines Mutant | -8/Materials Resources | -11 -10 -9 -9 -8 ----------- Run | Yrd Mat Mat Min Mat Matter Collected 1039 | 278 68 201 201 291 Remotely 43 | 43 . . . . Salvage Created 1196 | 143 142 518 224 169 Parts 84 | 6 8 33 22 15 Haulers Intercepted . | . . . . . Recyclers Shooed 2 | . 2 . . . Parts Field Recycled . | . . . . . Retrieved Matter . | . . . . . Parts Self-Destructed . | . . . . . Prevented . | . . . . . Kills | -11 -10 -9 -9 -8 ------- Run | Yrd Mat Mat Min Mat Combat Hostiles Destroyed 33 | . 3 12 9 9 Guns 20 | . 3 12 5 . Cannons 12 | . . . 4 8 AOE 1 | . . . . 1 Classes Destroyed 7 | 2 1 1 2 1 Tunneler 2 | 2 . . . . Recycler 1 | 1 . . . . Watcher 1 | . . . . 1 Swarmer 6 | . . . 3 3 Grunt 21 | . 3 8 5 5 Brawler 1 | . . . 1 . Sentry 5 | . . 4 . 1 Best Kill Streak 4 | 2 2 4 3 4 Combat Bots Only 4 | . 2 4 3 4 Max Kills in Single Turn 2 | 1 1 2 1 1 Gunslinging . | . . . . . Exploded 1 | . . . . 1 Melee . | . . . . . Uniques/NPCs Destroyed . | . . . . . Combat | -11 -10 -9 -9 -8 -------- Run | Yrd Mat Mat Min Mat Hostile Shots Fired 278 | . 13 62 55 148 Missed 70 | . 2 18 15 35 Damage Taken 2909 | . 137 578 461 1733 Core 763 | . . 166 47 550 Absorbed by Shields . | . . . . . Core Remaining (%) 82 | 100 100 . 46 . Volleys Fired 108 | 4 12 29 22 41 Largest 2 | 2 2 2 2 2 Hottest 92 | 40 40 88 88 92 Shots Fired 194 | 8 24 58 44 60 Gun 117 | 8 24 58 27 . Cannon 76 | . . . 17 59 Launcher 1 | . . . . 1 Special . | . . . . . Kinetic 176 | 8 24 46 39 59 Thermal 17 | . . 12 5 . Explosive 1 | . . . . 1 Electromagnetic . | . . . . . Robot Hit Streak 29 | 2 10 29 17 6 Robot Miss Streak 11 | 1 1 3 5 11 Penetration Max . | . . . . . Secondary Targets . | . . . . . Shots Hit Robots 137 | 4 20 48 27 38 Core Hits 83 | 5 8 24 14 32 Critical Kills 2 | . . . 1 1 Critical Parts Destroyed 3 | . . . 1 2 Critical Strikes 5 | . . . 2 3 Destroy 5 | . . . 2 3 Melee Attacks . | . . . . . Impact . | . . . . . Slashing . | . . . . . Piercing . | . . . . . Sneak Attacks . | . . . . . Combat Hostiles . | . . . . . Follow-up Attacks . | . . . . . Damage Inflicted 2558 | 55 215 705 448 1135 Guns 1250 | 45 197 705 303 . Cannons 1063 | . . . 145 918 Explosions 201 | . . . . 201 Melee . | . . . . . Ramming 44 | 10 18 . . 16 Kinetic 2050 | 45 197 517 373 918 Thermal 263 | . . 188 75 . Explosive 201 | . . . . 201 Electromagnetic . | . . . . . Impact . | . . . . . Slashing . | . . . . . Piercing . | . . . . . Highest Corruption 1 | . . . . 1 Average Corruption 1 | . . . . 1 Corruption Purged . | . . . . . Corruption Blocked . | . . . . . Effects 1 | . . . . 1 Matter Fused 1 | . . . . 1 Overload Shots . | . . . . . Overflow Damage 6 | . . . . 6 Projectiles 6 | . . . . 6 Explosions . | . . . . . Melee . | . . . . . Knockbacks 18 | . . . . 18 Impact . | . . . . . Kinetic 16 | . . . . 16 Secondary 2 | . . . . 2 Self-Inflicted Damage 32 | . . . . 32 Shots 1 | . . . . 1 Rammed 6 | 1 . . . 5 Targets Rammed 15 | 3 3 . . 9 Kicked 9 | 2 3 . . 4 Crushed . | . . . . . Highest Temperature 187 | . 12 133 141 187 Average Temperature 53 | . 7 66 46 57 Received Heat Transfer 1434 | . 75 273 114 972 Siege Activations . | . . . . . Robots Corrupted . | . . . . . Combat Hostiles . | . . . . . Parts Fried . | . . . . . Impact Corruptions . | . . . . . Robots Melted . | . . . . . Combat Hostiles . | . . . . . Parts Melted 1 | . . 1 . . Heat Transferred 629 | . . 444 185 . Parts Sabotaged . | . . . . . Parts Stolen . | . . . . . Parts Stripped . | . . . . . Power Chain Reactions . | . . . . . Alert | -11 -10 -9 -9 -8 ------- Run | Yrd Mat Mat Min Mat Peak Influence 339 | 15 161 339 296 295 Initial 85 | . 9 67 85 55 Average 144 | 3 66 174 184 142 Maximum Alert Level 1 | . . 1 1 1 Low Security (%) 69 | 100 100 61 56 67 Level 1 30 | . . 38 43 32 Level 2 . | . . . . . Level 3 . | . . . . . Level 4 . | . . . . . Level 5 . | . . . . . High Security . | . . . . . Max Security . | . . . . . Squads Dispatched 4 | . 1 1 . 2 Investigation 1 | . . . . 1 Extermination . | . . . . . Reinforcement 3 | . 1 1 . 1 Assault . | . . . . . Garrison . | . . . . . Intercept . | . . . . . Searches Triggered . | . . . . . Construction Impeded . | . . . . . Haulers Reinforced . | . . . . . Active Scanning Responses . | . . . . . Cargo Convoy Interrupts . | . . . . . Stealth | -11 -10 -9 -9 -8 --------- Run | Yrd Mat Mat Min Mat Distress Signals 3 | . . 2 . 1 Communications Jammed . | . . . . . Distress Signals . | . . . . . Times Spotted 70 | . 6 23 13 28 Peak Tracking Total 9 | . 3 9 4 9 Tactical Retreats 9 | . 1 1 2 5 Traps | -11 -10 -9 -9 -8 ------- Run | Yrd Mat Mat Min Mat Traps Triggered . | . . . . . Indirectly . | . . . . . Trap Hack Attempts . | . . . . . Triggered . | . . . . . Disarmed . | . . . . . Reprogrammed . | . . . . . Reused . | . . . . . Traps Extracted . | . . . . . Installed . | . . . . . Triggered . | . . . . . Machines | -11 -10 -9 -9 -8 ---------- Run | Yrd Mat Mat Min Mat Machines Disabled . | . . . . . Max in Single Turn . | . . . . . Machines Repaired . | . . . . . Machines Dismantled . | . . . . . Machines Sabotaged . | . . . . . Overloaded Fab Kills . | . . . . . Hacking | -11 -10 -9 -9 -8 --------- Run | Yrd Mat Mat Min Mat Machines Accessed 10 | . 3 5 1 1 Terminals 9 | . 3 4 1 1 Fabricators . | . . . . . Repair Stations . | . . . . . Recycling Units 1 | . . 1 . . Scanalyzers . | . . . . . Garrison Access . | . . . . . Total Hacks 29 | . 8 17 1 3 Successful 12 | . 3 6 1 2 Failed 17 | . 5 11 . 1 Catastrophic 3 | . . 2 . 1 Database Lockouts . | . . . . . Manual 8 | . 1 6 . 1 Terminals 27 | . 8 15 1 3 Fabricators . | . . . . . Repair Stations . | . . . . . Recycling Units 2 | . . 2 . . Scanalyzers . | . . . . . Garrison Access . | . . . . . Terminal Hacks 11 | . 3 5 1 2 Prototype ID Bank 1 | . 1 . . . Level Access Points 1 | . . . 1 . Emergency Access Points 2 | . . 1 . 1 Alert Level 1 | . . . . 1 Disarm Traps 1 | . 1 . . . Maintenance Status 1 | . . 1 . . Surveillance Status 1 | . . 1 . . Hauler Manifests 1 | . . 1 . . Registered Components 1 | . . 1 . . Zone Layout 1 | . 1 . . . Fabricator Hacks . | . . . . . Repair Station Hacks . | . . . . . Recycling Unit Hacks . | . . . . . Scanalyzer . | . . . . . Garrison Access Hacks . | . . . . . Unauthorized Hacks 1 | . . 1 . . Terminals . | . . . . . Fabricators . | . . . . . Repair Stations . | . . . . . Recycling Units 1 | . . 1 . . Reject 1 | . . 1 . . Scanalyzers . | . . . . . Garrison Access . | . . . . . Data Cores Recovered . | . . . . . Used . | . . . . . Hacking Detections 8 | . 2 5 . 1 Full Trace Events 1 | . . . . 1 Feedback Events . | . . . . . Feedback Blocked . | . . . . . Robot Schematics Acquired . | . . . . . Robots Built . | . . . . . Authchips . | . . . . . Time . | . . . . . Total Robot Build Rating . | . . . . . Part Schematics Acquired . | . . . . . Parts Built . | . . . . . Authchips . | . . . . . Time . | . . . . . Total Part Build Rating . | . . . . . Parts Repaired . | . . . . . Time . | . . . . . Parts Recycled . | . . . . . Recycled Matter . | . . . . . Retrieved Matter . | . . . . . Retrieved Components . | . . . . . Parts Scanalyzed . | . . . . . Part Schematics Acquired . | . . . . . Parts Damaged . | . . . . . Bothacking | -11 -10 -9 -9 -8 ------------ Run | Yrd Mat Mat Min Mat Used RIF Installer . | . . . . . Robots Hacked . | . . . . . Non-combat . | . . . . . Combat . | . . . . . Robot Hacks Applied . | . . . . . Relay Couplers Released . | . . . . . Fabnet Peak Effective % . | . . . . . Robots Rewired . | . . . . . Allies Hacked . | . . . . . Hacks Repelled . | . . . . . Allies | -11 -10 -9 -9 -8 -------- Run | Yrd Mat Mat Min Mat Total Allies . | . . . . . Largest Group . | . . . . . Highest-Rated Group . | . . . . . Highest-Rated Ally . | . . . . . Total Orders . | . . . . . Ally Attacks . | . . . . . Total Damage . | . . . . . Kills . | . . . . . Allies Corrupted . | . . . . . Allies Melted . | . . . . . Intel | -11 -10 -9 -9 -8 ------- Run | Yrd Mat Mat Min Mat Robot Analysis Total . | . . . . . Derelict Logs Recovered 1 | . . . 1 . Drone Launches . | . . . . . Drone Recoveries . | . . . . . Exploration | -11 -10 -9 -9 -8 ------------- Run | Yrd Mat Mat Min Mat Turns Passed 2021 | 89 329 562 551 490 Spaces Moved 969 | 48 202 234 268 217 Core 39 | 22 . . . 17 Treads . | . . . . . Legs 923 | 26 202 234 268 193 Wheels . | . . . . . Hover . | . . . . . Flight 7 | . . . . 7 Fastest Speed 50 | 50 120 120 120 110 Average Speed 157 | 112 129 189 165 149 Slowest Speed 250 | 200 190 190 190 250 Overloaded Moves . | . . . . . Propulsion Burnouts . | . . . . . Robots Hopped . | . . . . . Cave-ins Triggered . | . . . . . Exploration Rate (%) 28 | 4 31 28 50 27 Regions Visited 4 Branch Regions 1 Pre-discovered Areas 1 | . . . 1 . Known Exits Taken 1 | . . . 1 . Unknown Exits Taken 3 | 1 1 1 . . Scrap Searched 3 | . . . 3 . Spaces Dug . | . . . . . Terrain Destroyed 36 | . . . 7 29 Melee . | . . . . . Projectile 27 | . . . 7 20 AOE 9 | . . . . 9 Terrain Rammed . | . . . . . Walls Destroyed . | . . . . . Machines Disabled . | . . . . . Actions | -11 -10 -9 -9 -8 --------- Run | Yrd Mat Mat Min Mat Total 1274 | 74 247 298 335 320 Wait 89 | . 23 17 25 24 Move 965 | 47 201 233 267 217 Hop . | . . . . . Pick Up 44 | 11 5 10 7 11 Fast Attach . | . . . . . Attach 36 | 8 1 6 7 14 Detach . | . . . . . Swap . | . . . . . Drop 17 | 1 2 3 7 4 Fire 108 | 4 12 29 22 41 Melee . | . . . . . Ram 6 | 1 . . . 5 Kick 9 | 2 3 . . 4 Crush . | . . . . . Escape Stasis . | . . . . . Rewire . | . . . . . Trap . | . . . . . Miscellaneous . | . . . . . Route ------- -11/Scrapyard -10/Materials (discovered 2 exits: *Mat / [*Min]) -9/Materials (discovered 3 exits: *Mat / *Min / [*Sto]) -9/Mines (discovered 2 exits: *Mat x2) -8/Materials History --------- Turn | Location | Event 12 | -11/Scrapyard | Discovered new exit (range 15) 90 | -11/Scrapyard | Entered Materials 121 | -10/Materials | Discovered new exit (range 15) 301 | -10/Materials | Build established: Mutant 330 | -10/Materials | Discovered new exit (range 9) 419 | -10/Materials | Entered another Materials area 419 | -9/Materials | Evolved 2 slots: Utility x2 855 | -9/Materials | Discovered new exit (range 4) 890 | -9/Materials | Discovered new exit (range 16) 929 | -9/Materials | Discovered new exit (range 9) 981 | -9/Materials | Entered Mines 1060 | -9/Mines | Learned location of Zion (-6) 1067 | -9/Mines | A weapon hastily lodged in a ceiling crevice suddenly fell to the ground 1241 | -9/Mines | Core integrity fell below 50% 1391 | -9/Mines | Discovered new exit (range 8) 1455 | -9/Mines | Identified exit to Materials 1532 | -9/Mines | Entered Materials 1532 | -8/Materials | Evolved 2 slots: Utility x2 1864 | -8/Materials | Lost 4 parts (1p1n1u1w) 1953 | -8/Materials | Lost 4 parts (1p2u1w) 1994 | -8/Materials | Lost 3 parts (2n1u) 2003 | -8/Materials | Core integrity fell below 50% 2010 | -8/Materials | Core integrity fell below 20% 2022 | -8/Materials | Destroyed self with Missile Launcher Last Messages --------------- K-01 Serf cleans the Recycling Unit. Acquired Deuterium Engine. Aluminum Leg destroyed. Targeting Computer destroyed. Aluminum Leg destroyed. Slammed into A-02 Transporter. Slammed into K-01 Serf. Targeting Computer destroyed. Acquired Prototype Flight Unit. Slammed into G-47 Trooper. Destabilizing: System corrupted (+1). Targeting Computer destroyed. Critical hit (Burn: +37). Slammed into G-47 Trooper. Critical hit (Burn: +37). Identified Imp. Flight Unit. Critical hit (Burn: +37). Acquired Missile Launcher. System corrupted: Matter fused (-10). G-47 Trooper destroyed. Map ----- +----------------------------------------------------+ | ??+????#!#????????## ##????????????????????????? | | ??????##=##????#### #????????????????????????? | | # ######### #????????????????????????? | | + % !==T #????????????????????????? | | # ######/## #????????????????????????? | | ?## ### #!=! #????????????????????????? | | ???# #?# """ ### #####??????????????????????? | | ##?????# #?# "R" #?#=#"""#??????????????????????? | | ???????# #?#! " " #?# #"Y"###????????????????????? | | ???????# #?# #?# #????????????????????? | | ???????# #?# #?# #????????????????????? | | ???????# #?########?# "T" ##### ????????????? | | ???????# ############ k ????????????? | | ???????# + # ! ####?????????????????? | | ???????# ##### # #????????????????????? | | ???????# #???# + #????????????????????? | | ???### ###?# # """ #????????????????????? | | T" ## #?# # """ #????????????????????? | | #?# # """ #????????????????????? | | #?######## #????????????????????? | | ######### #????????????????????? | | ###+## Y g #????????????????????? | | ?????###+######### g #+###??????????????????? | | ????????????# # = #??????????????????? | | ????????????#"" /g g == #??????????????????? | | ????????????#"T # g =@ #??????????????????? | | ????????????#"" # =] +??????????????????? | | ????????????# # # #??????????????????? | | ????????????# # ## ######??????????????????? | | ????????????# #+##+###????????????????????????? | | ????????????# ! #??? ??????????????????????????? | | ????????????# #??? ?????????????????????????? | | ????????????######???? /????????????????????????? | | ?????????????????????? # ???????????????????????? | | ?????????????????????? ###??????????????????????? | | ??????????????????????? #????????????????????????? | | ?????????????????????????????????????????????????? | | ?????????????????????????????????????????????????? | | ?????????????????????????????????????????????????? | | ?????????????????????????????????????????????????? | | ?????????????????????????????????????????????????? | | ?????????????????????????????????????????????????? | | | | | | | | | | | | | | | | | +----------------------------------------------------+ Best States ------------- Heat Dissipation 31 Energy Generation 14 Energy Capacity 250 Matter Stores 300 Matter Capacity 300 Sight Range 16 Terrain Scan Range 16 Terrain Scan Density 10 Additional Mass Support 6 Armor Coverage 300 Evasion (%) 55 Targeting Accuracy 23 Item Schematics ----------------- None Robot Schematics ------------------ None Fabricated ------------ Nothing Alien Tech Used ----------------- None Achievements -------------- None Challenges ------------ None Game ------ Seed ThrowingPhasingShotgun Manual? 0 Play Time 00:21:10 Cumulative 7.1 hours Start 2024.04.18 @ 23:27:55 End 2024.04.18 @ 23:47:30 Sessions 1 Manual Loads 0 Difficulty Rogue Special Mode None Game No. 8 Rogue 7 Adventurer 1 Explorer 0 Win Type - Total 0 Types 0/0/0/0/0/0/0/0/0 Lore% 11 Gallery% 15 Achievement% 14 Wizard Run 0 Options --------- Layout 1 ASCII 0 Keyboard 0 Movement Numpad Keybinds 0 Fullscreen 1 Font 24/Smallcaps Map View 50x35 Zoom Use 0% Tactical HUD 0 Map Filters NONE Filters NONE Steam 1 RUN: eeb0cb41-c808-46e8-b466-05ff739d71d6